{"text_format":"1","workbook":"xlsx","n_sheets":9,"sheets":["Указания по заполнению","Список сотрудников","Расходы","Валюта","Исходные данные","Лист1","Командировка по РБ","Командировка за границу","Размеры возмещения"],"not_rendered":{"charts":0,"images":1,"macros":1,"external_links":0,"defined_names":14,"comments":6,"pivot_tables":0},"unopened":[],"bounds":{"document_bytes":16777216,"sheet_cells":100000,"rows_first":2000,"rows_last":500,"rows_between":2000,"halvings":0,"cell_chars":16384,"cell_head_chars":4096},"cells_cut":0,"cells_raw":0,"read":"whole","date_system":"1900"}

{"sheet":"Указания по заполнению","index":0,"n_rows":0,"n_cols":0,"rows_kept":0,"cut":false,"hidden":false,"merged":[]}

{"sheet":"Список сотрудников","index":1,"n_rows":101,"n_cols":4,"rows_kept":101,"cut":false,"hidden":false,"merged":[]}
[null,"Должность","Ф. И. О. полностью","Ф. И. О. сокращенное"]
[]
[{"$f":"IF(C3=\"\",\"\",C3)","v":"Евдокимович Наталья Сергеевна"},"Директор","Евдокимович Наталья Сергеевна",{"$f":"IF(C3=\"\",\"\",(MID(C3,1,SEARCH(\" \",C3)-1)&\" \"&MID(C3,SEARCH(\" \",C3)+1,1)&\".\"&MID(C3,SEARCH(\" \",C3,SEARCH(\" \",C3)+1)+1,1)&\".\"))","v":"Евдокимович Н.С."}]
[{"$f":"IF(C4=\"\",\"\",C4)","v":"Соловушка Екатерина Леонидовна"},"Бухгалтер","Соловушка Екатерина Леонидовна",{"$f":"IF(C4=\"\",\"\",(MID(C4,1,SEARCH(\" \",C4)-1)&\" \"&MID(C4,SEARCH(\" \",C4)+1,1)&\".\"&MID(C4,SEARCH(\" \",C4,SEARCH(\" \",C4)+1)+1,1)&\".\"))","v":"Соловушка Е.Л."}]
["Криповец Юрий Анатольевич","Водитель","Криповец Юрий Анатольевич","Криповец Ю.А."]
["Бакунович Сергей Леонидович","Экономист","Бакунович Сергей Леонидович","Бакунович С.Л."]
["",null,null,""]
["",null,null,""]
["",null,null,""]
["",null,null,""]
["",null,null,""]
["",null,null,""]
["",null,null,""]
["",null,null,""]
["",null,null,""]
["",null,null,""]
["",null,null,""]
["",null,null,""]
["",null,null,""]
["",null,null,""]
["",null,null,""]
["",null,null,""]
["",null,null,""]
["",null,null,""]
["",null,null,""]
["",null,null,""]
["",null,null,""]
["",null,null,""]
["",null,null,""]
["",null,null,""]
["",null,null,""]
["",null,null,""]
["",null,null,""]
["",null,null,""]
["",null,null,""]
["",null,null,""]
["",null,null,""]
["",null,null,""]
["",null,null,""]
["",null,null,""]
["",null,null,""]
["",null,null,""]
["",null,null,""]
["",null,null,""]
["",null,null,""]
["",null,null,""]
["",null,null,""]
["",null,null,""]
["",null,null,""]
["",null,null,""]
["",null,null,""]
["",null,null,""]
["",null,null,""]
["",null,null,""]
["",null,null,""]
["",null,null,""]
["",null,null,""]
["",null,null,""]
["",null,null,""]
["",null,null,""]
["",null,null,""]
["",null,null,""]
["",null,null,""]
["",null,null,""]
["",null,null,""]
["",null,null,""]
["",null,null,""]
[{"$f":"IF(C68=\"\",\"\",C68)","v":""},null,null,{"$f":"IF(C68=\"\",\"\",(MID(C68,1,SEARCH(\" \",C68)-1)&\" \"&MID(C68,SEARCH(\" \",C68)+1,1)&\".\"&MID(C68,SEARCH(\" \",C68,SEARCH(\" \",C68)+1)+1,1)&\".\"))","v":""}]
["",null,null,""]
["",null,null,""]
["",null,null,""]
["",null,null,""]
["",null,null,""]
["",null,null,""]
["",null,null,""]
["",null,null,""]
["",null,null,""]
["",null,null,""]
["",null,null,""]
["",null,null,""]
["",null,null,""]
["",null,null,""]
["",null,null,""]
["",null,null,""]
["",null,null,""]
["",null,null,""]
["",null,null,""]
["",null,null,""]
["",null,null,""]
["",null,null,""]
["",null,null,""]
["",null,null,""]
["",null,null,""]
["",null,null,""]
["",null,null,""]
["",null,null,""]
["",null,null,""]
["",null,null,""]
["",null,null,""]
["",null,null,""]
["",null,null,{"$f":"IF(C101=\"\",\"\",(MID(C101,1,SEARCH(\" \",C101)-1)&\" \"&MID(C101,SEARCH(\" \",C101)+1,1)&\".\"&MID(C101,SEARCH(\" \",C101,SEARCH(\" \",C101)+1)+1,1)&\".\"))","v":""}]

{"sheet":"Расходы","index":2,"n_rows":26,"n_cols":1,"rows_kept":26,"cut":false,"hidden":false,"merged":[]}
["Перечень расходов, подлежащих возмещению"]
[]
["По проживанию вне места жительства (суточные)"]
["По найму жилого помещения"]
["По проезду к месту командировки и обратно"]
["По проезду до вокзала, аэропорта или пристани (с вокзала, аэропорта или пристани) "]
["По провозу багажа в случае выполнения служебного поручения по его провозу свыше норм бесплатного провоза багажа по билету"]
["Стоимость бронирования, комиссионных сборов, пользования комплектом спальных принадлежностей"]
["По оформлению и выдаче виз, в том числе по оплате услуг, связанных с приемом и обработкой документов для оформления виз "]
["По уплате обязательного сбора (пошлины), взимаемого в аэропортах"]
["По страхованию от несчастных случаев и болезней на время поездки за границу "]
["По страхованию автотранспорта и гражданской ответственности перевозчика"]
["По аренде автомобиля"]
["По приобретению горюче-смазочных материалов"]
["По оплате стоянки"]
["По оплате проезда по платным дорогам (туннелям, мостам)"]
["По уплате таможенных сборов и пошлин"]
["По мойке транспортного средства"]
["По оплате разрешений на проезд по территории иностранных государств в рамках ветеринарного, фитосанитарного, санитарно-эпидемиологического и прочих видов контроля "]
["По оплате услуг по приграничной обработке транспортных средств на объектах приграничного сервиса (терминал)"]
["По оплате услуг электросвязи "]
["По уплате экологических налогов и сборов"]
["По эвакуации и буксировке транспортных средств в случае аварий и технических неисправностей "]
["Экологические налоги и сборы"]
["Факсимильная связь"]
["Эвакуация транспортных средств в случае аварий и технических неисправностей"]

{"sheet":"Валюта","index":3,"n_rows":49,"n_cols":2,"rows_kept":49,"cut":false,"hidden":false,"merged":[]}
["Виды валют, принимаемые для расчета"]
[]
["бел. руб."]
["доллары США"]
["евро"]
["росс. руб."]
["злотые"]
[]
[]
[]
[]
[]
[]
[]
[]
[]
[]
[]
[]
[]
[]
[]
[]
["бел. руб.",1]
["доллары США",1]
["евро",1]
["росс. руб.",100]
["австралийский доллар",1]
["болгарские левы",1]
["гривны",100]
["датские кроны",10]
["злотые",10]
["иранские риалы",100000]
["исландские кроны",100]
["йены",100]
["канадские долл.",1]
["юани",10]
["кувейтские динары",1]
["молдавские левы",10]
["новозеландские долл.",1]
["норвежские кроны",10]
["сингапурские долл.",1]
["сомы",100]
["тенге",1000]
["турецкие лиры",10]
["фунт стерлингов",1]
["чешские кроны",100]
["шведске кроны",10]
["швейцарские франки",1]

{"sheet":"Исходные данные","index":4,"n_rows":35,"n_cols":23,"rows_kept":35,"cut":false,"hidden":false,"merged":[[31,0,31,1],[32,0,32,1],[34,0,34,1],[23,0,24,0],[27,0,28,0],[29,0,30,0],[25,0,26,1],[33,0,33,1],[0,0,0,2],[2,0,2,2],[6,0,7,0],[8,0,9,0],[5,0,5,1],[4,0,4,1],[19,0,19,1],[21,0,22,0],[12,0,12,1],[13,0,13,1],[10,0,11,0],[15,0,15,1],[20,0,20,1],[14,0,14,1]]}
["Исходные данные для расчета\nаванса на командировочные расходы"]
[]
["Командировка по Республике Беларусь"]
[]
["Наименование организации",null,"Общество с ограниченной ответственностью «А»"]
["Ф. И. О. сотрудника",null,"Евдокимович Наталья Сергеевна",null,"Работник ежедневно не возвращается к месту жительства"]
["Приказ о командировании","дата","2020-09-08",null,"Работник ежедневно возвращается к месту жительства"]
[null,"номер","15"]
["Период командировки","с","2020-09-10",null,"Принимающая сторона не обеспечивает работника 3-х разовым питанием и транспортом"]
[null,"по","2020-09-12",null,"Принимающая сторона обеспечивает работника 3-х разовым питанием и транспортом"]
["Место командирования","областной\n(районный центр)","Витебск",null,{"$f":"IF(AND(C11>\"\",C12>\"\"),20,IF(AND(C11>\"\",C12=\"\"),VLOOKUP(C11,'Размеры возмещения'!$G$2:$H$126,2,0)))","v":50}]
[null,"населенный пункт",null,null,"Работнику не предоставляется жилое помещение"]
["Укажите о наличии возможности ежедневно возвращаться к месту жительства",null,"Работник ежедневно не возвращается к месту жительства",null,"Работнику предоставляется жилое помещение"]
["Для расчета суточных выберите из списка нужный вариант",null,"Принимающая сторона не обеспечивает работника 3-х разовым питанием и транспортом"]
["Если принимающая сторона обеспечивает работника\n3-х разовым питанием и транспортом, укажите количествово дней обеспечения"]
["Для расчета расходов по найму выберите из списка нужный вариант",null,"Работнику не предоставляется жилое помещение"]
[]
["Командировка за границу"]
[]
["Наименование организации",null,"Общество с ограниченной ответственностью «А»"]
["Ф. И. О. сотрудника",null,"Бакунович Сергей Леонидович"]
["Приказ о командировании","дата","2020-09-08"]
[null,"номер","35"]
["Период командировки","с","2020-07-06",null,null,null,null,null,null,null,null,null,null,null,null,null,null,null,null,null,null,null,"Не предоставляется"]
[null,"по","2020-07-08",null,null,null,null,null,null,null,null,null,null,null,null,null,null,null,null,null,null,null,"Оплачивает принимающая либо направляющая сторона"]
["Место командирования (страна и населенный пункт)",null,"Российская Федерация, Москва"]
[]
["Валюта страны командирования","вид валюты",{"$f":"IF(C26=\"\",\"\",VLOOKUP(C26,'Размеры возмещения'!$A$16:$D$211,2,0))","v":"доллары США"}]
[null,"курс в бел.руб.",2.4123000000000001]
["Валюта аванса на командировочные расходы","вид валюты","росс. руб."]
[null,"курс в бел.руб.",3.4222999999999999]
["Курс пересчета",null,{"$f":"IF(C28=C30,1,IF(OR(C31=0,C30=\"бел. руб.\"),0,(C29/(C31/VLOOKUP(C30,Валюта!$A$24:$B$49,2,0)))))","v":70.487683721473871}]
["Для расчета суточных выберите из списка нужный вариант",null,"Принимающая сторона не обеспечивает работника 3-х разовым питанием и транспортом"]
["Если принимающая сторона обеспечивает работника\n3-х разовым питанием и транспортом, укажите количествово дней обеспечения"]
["Для расчета расходов по найму выберите из списка нужный вариант",null,"Работнику не предоставляется жилое помещение"]

{"sheet":"Лист1","index":5,"n_rows":9,"n_cols":8,"rows_kept":9,"cut":false,"hidden":true,"merged":[[3,0,4,0],[5,0,6,0],[7,0,8,0],[1,0,2,1]]}
[]
[null,null,null,"РБ",null,null,"Загр"]
[null,null,"суточные","найм","путь","суточные","найм","путь"]
["Возможность ежедневно возвращаться к месту жительства",{"$f":"'Исходные данные'!$E$6","v":"Работник ежедневно не возвращается к месту жительства"},{"$f":"'Размеры возмещения'!$D$6","v":9},{"$f":"'Исходные данные'!$E$11","v":50},"Х","Х","Х","Х"]
[null,{"$f":"'Исходные данные'!$E$7","v":"Работник ежедневно возвращается к месту жительства"},{"$f":"'Размеры возмещения'!$D$6","v":9},0,"Х","Х","Х","Х"]
["Принимающая сторона обеспечивает работника питанием и транспортом",{"$f":"'Исходные данные'!$E$9","v":"Принимающая сторона не обеспечивает работника 3-х разовым питанием и транспортом"},{"$f":"'Размеры возмещения'!$D$6","v":9},"Х","Х",{"$f":"IF('Исходные данные'!$C$26=\"\",0,VLOOKUP('Исходные данные'!C26,'Размеры возмещения'!$A$16:$D$211,3,0))","v":40},"Х","Х"]
[null,{"$f":"'Исходные данные'!$E$10","v":"Принимающая сторона обеспечивает работника 3-х разовым питанием и транспортом"},{"$f":"IF('Исходные данные'!C15>0,'Размеры возмещения'!$D$6,0)","v":0},"Х","Х",{"$f":"IF('Исходные данные'!C34>0,VLOOKUP('Исходные данные'!C26,'Размеры возмещения'!$A$16:$D$211,3,0),0)","v":0},"Х","Х"]
["Работнику предоставляется жилое помещение",{"$f":"'Исходные данные'!$E$12","v":"Работнику не предоставляется жилое помещение"},"Х",{"$f":"'Исходные данные'!$E$11","v":50},"Х","Х",{"$f":"IF('Исходные данные'!$C$26=\"\",0,VLOOKUP('Исходные данные'!C26,'Размеры возмещения'!$A$16:$D$211,4,0))","v":145},"Х"]
[null,{"$f":"'Исходные данные'!$E$13","v":"Работнику предоставляется жилое помещение"},"Х",0,"Х","Х",0,"Х"]

{"sheet":"Командировка по РБ","index":6,"n_rows":51,"n_cols":17,"rows_kept":51,"cut":false,"hidden":false,"merged":[[42,0,42,2],[15,0,15,5],[30,0,30,10],[28,0,28,10],[28,11,28,13],[29,0,29,10],[29,11,29,13],[27,0,27,10],[27,11,27,13],[16,0,16,5],[25,11,25,13],[0,0,0,5],[1,0,1,5],[5,0,5,13],[1,9,1,11],[2,9,2,10],[2,11,2,13],[12,6,12,13],[16,6,16,13],[17,11,17,13],[17,0,17,10],[18,0,18,10],[19,0,19,10],[20,0,20,10],[18,11,18,13],[19,11,19,13],[20,11,20,13],[26,11,26,13],[30,11,30,13],[31,0,31,10],[31,11,31,13],[32,11,32,13],[32,0,32,10],[33,0,33,10],[33,11,33,13],[21,0,21,10],[21,11,21,13],[47,5,47,7],[47,10,47,13],[38,0,38,10],[38,11,38,13],[25,0,25,10],[26,0,26,10],[48,5,48,7],[48,10,48,13],[49,10,49,13],[42,5,42,7],[43,5,43,7],[42,10,42,13],[43,10,43,13],[50,10,50,13],[14,12,14,13],[15,6,15,7],[22,0,22,10],[22,11,22,13],[23,0,23,10],[23,11,23,13],[24,0,24,10],[24,11,24,13],[45,0,45,13],[6,5,6,6],[3,9,3,11],[14,9,14,10],[14,6,14,7],[13,0,13,5],[14,0,14,5],[11,6,11,13],[13,6,13,13],[12,0,12,5],[11,0,11,5],[8,7,8,9],[47,0,47,2],[34,0,34,10],[34,11,34,13],[37,0,37,10],[37,11,37,13],[35,0,35,10],[35,11,35,13],[36,0,36,10],[36,11,36,13]]}
[{"$f":"IF('Исходные данные'!C5=\"\",\"\",'Исходные данные'!C5)","v":"Общество с ограниченной ответственностью «А»"},null,null,null,null,null,null,null,null,"УТВЕРЖДАЮ"]
["(наименование организации)",null,null,null,null,null,null,null,null,"Директор"]
[null,null,null,null,null,null,null,null,null,null,null,{"$f":"IF(J2=\"\",\"\",VLOOKUP($J$2,'Список сотрудников'!$B$2:$D$100,3,0))","v":"Евдокимович Н.С."}]
[null,null,null,null,null,null,null,null,null,{"$f":"IF(F7=\"\",\"\",F7)","v":"8 сентября 2020 г."}]
[]
["РАСЧЕТ\nсуммы аванса на командировочные расходы"]
[null,null,null,null,"от","8 сентября 2020 г.",null,"№",12]
[]
[null,null,null,null,null,null,"В соответствии с приказом о командировании от",{"$f":"IF('Исходные данные'!C7=\"\",\"\",'Исходные данные'!C7)","v":"2020-09-08"},null,null,"№",{"$f":"IF('Исходные данные'!C8=\"\",\"\",'Исходные данные'!C8)","v":"15"},null,"произведен"]
["расчет аванса на командировочные расходы:"]
[]
["Фамилия, имя, отчество командированного",null,null,null,null,null,{"$f":"IF('Исходные данные'!C6=\"\",\"\",'Исходные данные'!C6)","v":"Евдокимович Наталья Сергеевна"}]
["Должность",null,null,null,null,null,{"$f":"IF(G12=\"\",\"\",VLOOKUP(G12,'Список сотрудников'!$A$2:$D$100,2,0))","v":"Директор"}]
["Место командировки",null,null,null,null,null,{"$f":"IF('Исходные данные'!$C$11=\"\",\"\",IF('Исходные данные'!$C$12=\"\",CONCATENATE(\"г. \",'Исходные данные'!$C$11,\", Республика Беларусь\"),CONCATENATE('Исходные данные'!C12,\", \",\"Республика Беларусь\")))","v":"г. Витебск, Республика Беларусь"}]
["Срок и период командировки",null,null,null,null,null,{"$f":"IF(OR(J15=\"\",M15=\"\"),\"\",M15-J15+1)","v":3},null,"дн.:   с",{"$f":"IF('Исходные данные'!C9=\"\",\"\",'Исходные данные'!C9)","v":"2020-09-10"},null,"по",{"$f":"IF('Исходные данные'!C10=\"\",\"\",'Исходные данные'!C10)","v":"2020-09-12"}]
["Количество дней в пути",null,null,null,null,null,null,null,"дн."]
[{"$f":"IF(OR(G15=1,G15=\"\"),\"\",IF(G15-G16=1,\"Нахождение в месте командировки более 12 часов\",\"\"))","v":""}]
["Наименование расходов",null,null,null,null,null,null,null,null,null,null,"Сумма, руб.",null,null,null,"суточные","найм"]
["По проживанию вне места жительства (суточные)",null,null,null,null,null,null,null,null,null,null,{"$f":"IF(OR(G15=\"\",MAX(P19:P21)=0),0,(G15-'Исходные данные'!$C$15)*MAX(P19:P21))","v":27},null,null,null,{"$f":"IF(OR('Исходные данные'!C13=\"\",P20=0),0,VLOOKUP('Исходные данные'!$C$13,Лист1!$B$4:$E$9,2,0))","v":9},{"$f":"IF(OR('Исходные данные'!$C$13=\"\",VLOOKUP('Исходные данные'!$C$16,Лист1!$B$4:$E$9,3,0)=0),0,VLOOKUP('Исходные данные'!$C$13,Лист1!$B$4:$E$9,3,0))","v":50}]
["По найму жилого помещения",null,null,null,null,null,null,null,null,null,null,{"$f":"IF(OR(G15=\"\",G15=1),0,IF(G17=\"да\",1*MAX(Q19:Q21),(G15-1-G16)*MAX(Q19:Q21)))","v":100},null,null,null,{"$f":"IF('Исходные данные'!$C$14=\"\",0,VLOOKUP('Исходные данные'!$C$14,Лист1!$B$4:$E$9,2,0))","v":9},{"$f":"IF('Исходные данные'!$C$14=\"\",0,VLOOKUP('Исходные данные'!$C$14,Лист1!$B$4:$E$9,3,0))","v":"Х"}]
["По проезду к месту командировки и обратно",null,null,null,null,null,null,null,null,null,null,55,null,null,null,{"$f":"IF('Исходные данные'!$C$16=\"\",0,VLOOKUP('Исходные данные'!$C$16,Лист1!$B$4:$E$9,2,0))","v":"Х"},{"$f":"IF(OR('Исходные данные'!$C$16=\"\",VLOOKUP('Исходные данные'!$C$13,Лист1!$B$4:$E$9,3,0)=0),0,VLOOKUP('Исходные данные'!$C$16,Лист1!$B$4:$E$9,3,0))","v":50}]
[null,null,null,null,null,null,null,null,null,null,null,null,null,null,null,"да"]
[null,null,null,null,null,null,null,null,null,null,null,null,null,null,null,"нет"]
[]
[]
[]
[]
[]
[]
[]
[]
[]
[]
[]
[]
[]
[]
[]
["Итого",null,null,null,null,null,null,null,null,null,null,{"$f":"SUM(L19:N38)","v":182}]
[]
[]
[]
["Бухгалтер",null,null,null,null,null,null,null,null,null,{"$f":"IF(A43=\"\",\"\",VLOOKUP(A43,'Список сотрудников'!B2:D100,3,0))","v":"Соловушка Е.Л."}]
[null,null,null,null,null,"(подпись)",null,null,null,null,"(Ф. И. О.)"]
[]
["     С расчетом аванса, порядком и сроками составления отчета о расходовании полученного аванса, с ответственностью за нецелевое использование денежных средств, за невозвращение в установленный срок неиспользованных денежных средств ознакомлен."]
[]
[{"$f":"IF(G13=\"\",\"\",G13)","v":"Директор"},null,null,null,null,null,null,null,null,null,{"$f":"IF(A48=\"\",\"\",VLOOKUP(A48,'Список сотрудников'!B2:D100,3,0))","v":"Евдокимович Н.С."}]
[null,null,null,null,null,"(подпись)",null,null,null,null,"(Ф. И. О.)"]
[null,null,null,null,null,null,null,null,null,null,{"$f":"IF(F7=\"\",\"\",F7)","v":"8 сентября 2020 г."}]
[null,null,null,null,null,null,null,null,null,null,"(дата)"]

{"sheet":"Командировка за границу","index":7,"n_rows":55,"n_cols":18,"rows_kept":55,"cut":false,"hidden":false,"merged":[[17,12,17,13],[52,5,52,7],[52,10,52,13],[53,10,53,13],[32,12,32,13],[23,12,23,13],[24,9,24,11],[24,12,24,13],[26,0,26,8],[31,12,31,13],[8,7,8,9],[6,5,6,6],[13,0,13,5],[14,0,14,5],[12,0,12,5],[11,0,11,5],[11,6,11,13],[12,6,12,13],[17,0,17,11],[14,12,14,13],[54,10,54,13],[46,0,46,2],[51,5,51,7],[51,10,51,13],[49,0,49,13],[51,0,51,2],[46,5,46,7],[47,5,47,7],[46,10,46,13],[47,10,47,13],[0,0,0,5],[1,0,1,5],[5,0,5,13],[1,9,1,11],[2,9,2,10],[3,9,3,11],[20,12,20,13],[22,12,22,13],[21,12,21,13],[2,11,2,13],[33,12,33,13],[34,12,34,13],[25,12,25,13],[25,9,25,11],[26,12,26,13],[26,9,26,11],[30,12,30,13],[29,12,29,13],[27,12,27,13],[28,12,28,13],[27,0,27,8],[27,9,27,11],[28,9,28,11],[29,0,29,8],[29,9,29,11],[28,0,28,8],[30,0,30,8],[37,12,37,13],[41,12,41,13],[40,12,40,13],[39,12,39,13],[38,12,38,13],[35,12,35,13],[36,12,36,13],[30,9,30,11],[31,0,31,8],[42,12,42,13],[43,12,43,13],[42,0,42,11],[43,0,43,11],[41,0,41,8],[41,9,41,11],[18,0,18,11],[19,0,19,11],[15,0,15,11],[14,9,14,10],[13,6,13,10],[13,11,13,13],[16,0,16,11],[19,12,19,13],[18,12,18,13],[14,6,14,7],[20,0,20,8],[21,0,21,8],[23,0,23,8],[24,0,24,8],[25,0,25,8],[22,9,22,11],[22,0,22,8],[23,9,23,11],[20,9,20,11],[21,9,21,11],[31,9,31,11],[32,0,32,8],[32,9,32,11],[33,0,33,8],[33,9,33,11],[34,0,34,8],[34,9,34,11],[40,0,40,8],[40,9,40,11],[36,0,36,8],[36,9,36,11],[37,0,37,8],[37,9,37,11],[38,0,38,8],[38,9,38,11],[35,0,35,8],[35,9,35,11],[39,0,39,8],[39,9,39,11]]}
[{"$f":"IF('Исходные данные'!C20=\"\",\"\",'Исходные данные'!C20)","v":"Общество с ограниченной ответственностью «А»"},null,null,null,null,null,null,null,null,"УТВЕРЖДАЮ"]
["(наименование организации)",null,null,null,null,null,null,null,null,"Директор"]
[null,null,null,null,null,null,null,null,null,null,null,{"$f":"IF(J2=\"\",\"\",VLOOKUP($J$2,'Список сотрудников'!$B$2:$D$100,3,0))","v":"Евдокимович Н.С."}]
[null,null,null,null,null,null,null,null,null,{"$f":"IF(F7=\"\",\"\",F7)","v":"8 сентября 2020 г."}]
[]
["РАСЧЕТ\nсуммы аванса на командировочные расходы"]
[null,null,null,null,"от","8 сентября 2020 г.",null,"№",12]
[]
[null,null,null,null,null,null,"В соответствии с приказом о командировании от",{"$f":"IF('Исходные данные'!C22=\"\",\"\",'Исходные данные'!C22)","v":"2020-09-08"},null,null,"№",{"$f":"IF('Исходные данные'!C23=\"\",\"\",'Исходные данные'!C23)","v":"35"},null,"произведен"]
["расчет аванса на командировочные расходы:"]
[]
["Фамилия, имя, отчество командированного",null,null,null,null,null,{"$f":"IF('Исходные данные'!C21=\"\",\"\",'Исходные данные'!C21)","v":"Бакунович Сергей Леонидович"}]
["Должность",null,null,null,null,null,{"$f":"IF(G12=\"\",\"\",VLOOKUP(G12,'Список сотрудников'!$A$2:$D$100,2,0))","v":"Экономист"}]
["Место командировки",null,null,null,null,null,{"$f":"IF('Исходные данные'!C26=\"\",\"\",'Исходные данные'!C26)","v":"Российская Федерация, Москва"},null,null,null,null,{"$f":"IF('Исходные данные'!C27=\"\",\"\",'Исходные данные'!C27)","v":""}]
["Срок и период командировки",null,null,null,null,null,{"$f":"IF(OR(J15=\"\",M15=\"\"),\"\",M15-J15+1)","v":3},null,"дн.:   с",{"$f":"IF('Исходные данные'!C24=\"\",\"\",'Исходные данные'!C24)","v":"2020-07-06"},null,"по",{"$f":"IF('Исходные данные'!C25=\"\",\"\",'Исходные данные'!C25)","v":"2020-07-08"},null,null,"суточные","найм","да"]
["Количество дней в пути",null,null,null,null,null,null,null,null,null,null,null,1,"дн.",null,{"$f":"IF('Исходные данные'!$C$33=\"\",0,VLOOKUP('Исходные данные'!$C$33,Лист1!$B$4:$H$9,5,0))","v":40},{"$f":"IF('Исходные данные'!$C$35=\"\",0,VLOOKUP('Исходные данные'!$C$35,Лист1!$B$4:$H$9,6,0))","v":145},"нет"]
["в том числе по территории Республики Беларусь",null,null,null,null,null,null,null,null,null,null,null,null,"дн.",{"$f":"IF('Исходные данные'!$C$28=\"\",1,IF('Исходные данные'!$C$32=0,'Исходные данные'!$C$31,'Исходные данные'!$C$32))","v":70.487683721473871}]
[{"$f":"IF(OR(G15=1,G15=\"\"),\"\",IF(G15-M16=1,\"Нахождение в месте командировки более 12 часов\",\"\"))","v":""}]
["Наименование расходов",null,null,null,null,null,null,null,null,null,null,null,"Сумма"]
["По проживанию вне места жительства (суточные)",null,null,null,null,null,null,null,null,null,null,null,"х"]
["на территории Республики Беларусь",null,null,null,null,null,null,null,null,"бел. руб.",null,null,{"$f":"M17*'Размеры возмещения'!$D$6","v":0},null,{"$f":"IF(J21=\"бел. руб.\",M21,0)","v":0},{"$f":"IF(J21=\"бел. руб.\",0,M21)","v":0}]
["за границей",null,null,null,null,null,null,null,null,{"$f":"IF('Исходные данные'!C30=0,'Исходные данные'!C28,'Исходные данные'!C30)","v":"росс. руб."},null,null,{"$f":"IF(G15=\"\",0,ROUND((G15-M17-'Исходные данные'!$C$34)*P16*O17,2))","v":8458.52},null,{"$f":"IF(J22=\"бел. руб.\",M22,0)","v":0},{"$f":"IF(J22=\"бел. руб.\",0,M22)","v":8458.52}]
["По найму жилого помещения",null,null,null,null,null,null,null,null,{"$f":"J22","v":"росс. руб."},null,null,{"$f":"IF(G15=\"\",0,IF(M18=\"да\",ROUND(1*Q16*O17,2),ROUND((G15-1-M16)*Q16*O17,2)))","v":10220.709999999999},null,0,{"$f":"IF(J23=\"бел. руб.\",0,M23)","v":10220.709999999999}]
["По проезду к месту командировки и обратно",null,null,null,null,null,null,null,null,"росс. руб.",null,null,5000,null,0,{"$f":"IF(J24=\"бел. руб.\",0,M24)","v":5000}]
[null,null,null,null,null,null,null,null,null,null,null,null,null,null,0,0]
[null,null,null,null,null,null,null,null,null,null,null,null,null,null,0,0]
[null,null,null,null,null,null,null,null,null,null,null,null,null,null,0,0]
[null,null,null,null,null,null,null,null,null,null,null,null,null,null,0,0]
[null,null,null,null,null,null,null,null,null,null,null,null,null,null,0,0]
[null,null,null,null,null,null,null,null,null,null,null,null,null,null,0,0]
[null,null,null,null,null,null,null,null,null,null,null,null,null,null,0,0]
[null,null,null,null,null,null,null,null,null,null,null,null,null,null,0,0]
[null,null,null,null,null,null,null,null,null,null,null,null,null,null,0,0]
[null,null,null,null,null,null,null,null,null,null,null,null,null,null,0,0]
[null,null,null,null,null,null,null,null,null,null,null,null,null,null,0,0]
[null,null,null,null,null,null,null,null,null,null,null,null,null,null,0,0]
[null,null,null,null,null,null,null,null,null,null,null,null,null,null,0,0]
[null,null,null,null,null,null,null,null,null,null,null,null,null,null,0,0]
[null,null,null,null,null,null,null,null,null,null,null,null,null,null,0,0]
[null,null,null,null,null,null,null,null,null,null,null,null,null,null,0,0]
[null,null,null,null,null,null,null,null,null,null,null,null,null,null,0,0]
[null,null,null,null,null,null,null,null,null,null,null,null,null,null,0,0]
["Итого (бел. руб.)",null,null,null,null,null,null,null,null,null,null,null,{"$f":"IF(O43=0,0,O43)","v":0},null,{"$f":"SUM(O21:O42)","v":0},{"$f":"SUM(P21:P42)","v":23679.23}]
[{"$f":"CONCATENATE(\"Итого (\",J22,\")\")","v":"Итого (росс. руб.)"},null,null,null,null,null,null,null,null,null,null,null,{"$f":"IF(P43=0,0,P43)","v":23679.23}]
[null,null,null,null,null,null,null,null,null,null,null,null,null,null,{"$f":"IF('Исходные данные'!$C$30=\"\",'Исходные данные'!$C$28,'Исходные данные'!$C$30)","v":"росс. руб."}]
[null,null,null,null,null,null,null,null,null,null,null,null,null,null,"бел. руб."]
["Бухгалтер",null,null,null,null,null,null,null,null,null,{"$f":"IF(A47=\"\",\"\",VLOOKUP(A47,'Список сотрудников'!B2:D100,3,0))","v":"Соловушка Е.Л."}]
[null,null,null,null,null,"(подпись)",null,null,null,null,"(Ф. И. О.)"]
[]
["     С расчетом аванса, порядком и сроками составления отчета о расходовании полученного аванса, с ответственностью за нецелевое использование денежных средств, за невозвращение в установленный срок неиспользованных денежных средств ознакомлен."]
[]
[{"$f":"IF(G13=\"\",\"\",G13)","v":"Экономист"},null,null,null,null,null,null,null,null,null,{"$f":"IF(A52=\"\",\"\",VLOOKUP(A52,'Список сотрудников'!B2:D100,3,0))","v":"Бакунович С.Л."}]
[null,null,null,null,null,"(подпись)",null,null,null,null,"(Ф. И. О.)"]
[null,null,null,null,null,null,null,null,null,null,{"$f":"IF(F7=\"\",\"\",F7)","v":"8 сентября 2020 г."}]
[null,null,null,null,null,null,null,null,null,null,"(дата)"]

{"sheet":"Размеры возмещения","index":8,"n_rows":211,"n_cols":10,"rows_kept":211,"cut":false,"hidden":false,"merged":[[13,0,14,0],[13,1,14,1],[13,2,13,3],[10,0,12,3],[8,0,8,2],[9,0,9,2],[0,6,0,7],[7,6,7,7],[1,0,3,3],[7,0,7,2],[4,0,4,2],[5,0,5,2],[6,0,6,2]]}
[null,null,null,null,null,null,"Перечень областных центров Республики Беларусь"]
["РАЗМЕРЫ\nвозмещения расходов при командировках в пределах Республики Беларусь",null,null,null,null,null,"Брест",{"$f":"$D$8","v":50},null,"Брест"]
[null,null,null,null,null,null,"Витебск",50,null,"Витебск"]
[null,null,null,null,null,null,"Гомель",50,null,"Гомель"]
["Наименование расходов",null,null,"Размеры возмещения, рублей в сутки",null,null,"Гродно",50,null,"Гродно"]
["Суточные",null,null,9,null,null,"Минск",50,null,"Минск"]
["Расходы по найму жилого помещения:",null,null,null,null,null,"Могилев",50,null,"Могилев"]
["в областных центрах и г. Минске",null,null,50,null,null,"Перечень районных центров Республики Беларусь",null,null,"Барановичи"]
["в районных центрах",null,null,25,null,null,"Брестская область",null,null,"Белыничи"]
["в остальных населенных пунктах",null,null,20,null,null,"Барановичи",{"$f":"$D$9","v":25},null,"Береза"]
["РАЗМЕРЫ\nВОЗМЕЩЕНИЯ РАСХОДОВ ПРИ КОМАНДИРОВКАХ ЗА ГРАНИЦУ",null,null,null,null,null,"Береза",{"$f":"$D$9","v":25},null,"Березино"]
[null,null,null,null,null,null,"Ганцевичи",25,null,"Бешенковичи"]
[null,null,null,null,null,null,"Дрогичин",25,null,"Бобруйск"]
["Место командировки","Наименование валюты","Размеры возмещения",null,null,null,"Жабинка",25,null,"Большая Берестовица"]
[null,null,"суточных","расходов по найму жилого помещения (в сутки)",null,null,"Иваново",25,null,"Борисов"]
["Австралия","доллары США",95,175,null,null,"Ивацевичи",25,null,"Брагин"]
["Австрия","евро",100,110,null,null,"Каменец",25,null,"Браслав"]
["Азербайджан","доллары США",35,75,null,null,"Кобрин",25,null,"Буда-Кошелево"]
["Албания","доллары США",35,80,null,null,"Лунинец",25,null,"Быхов"]
["Алжир","доллары США",100,125,null,null,"Ляховичы",25,null,"Верхнедвинск"]
["Ангола","доллары США",65,140,null,null,"Малорита",25,null,"Ветка"]
["Андорра","евро",50,90,null,null,"Пинск",25,null,"Вилейка"]
["Антигуа и Барбуда","доллары США",115,155,null,null,"Пружаны",25,null,"Волковыск"]
["Аргентина","доллары США",55,190,null,null,"Столин",25,null,"Воложин"]
["Армения","доллары США",35,90,null,null,"Витебская область",null,null,"Вороново"]
["Афганистан","доллары США",45,100,null,null,"Браслав",25,null,"Ганцевичи"]
["Багамы","доллары США",130,250,null,null,"Бешенковичи",25,null,"Глубокое"]
["Бангладеш","доллары США",35,95,null,null,"Верхнедвинск",25,null,"Глуск"]
["Барбадос","доллары США",140,245,null,null,"Глубокое",25,null,"Горки"]
["Бахрейн","доллары США",80,170,null,null,"Городок",25,null,"Городок"]
["Белиз","доллары США",45,170,null,null,"Докшицы",25,null,"Дзержинск"]
["Бельгия","евро",90,205,null,null,"Дубровно",25,null,"Добруш"]
["Бенин","доллары США",55,120,null,null,"Лепель",25,null,"Докшицы"]
["Бермуды","доллары США",95,355,null,null,"Лиозно",25,null,"Дрибин"]
["Болгария","евро",45,110,null,null,"Миоры",25,null,"Дрогичин"]
["Боливия","доллары США",50,100,null,null,"Орша",25,null,"Дубровно"]
["Босния и Герцеговина","евро",50,70,null,null,"Полоцк",25,null,"Дятлово"]
["Ботсвана","доллары США",55,130,null,null,"Поставы",25,null,"Ельск"]
["Бразилия","евро",35,65,null,null,"Россоны",25,null,"Жабинка"]
["Бруней","доллары США",40,115,null,null,"Сенно",25,null,"Житковичи"]
["Буркина-Фасо","доллары США",60,170,null,null,"Толочин",25,null,"Жлобин"]
["Бурунди","доллары США",70,130,null,null,"Ушачи",25,null,"Зельва"]
["Вануату","доллары США",90,205,null,null,"Чашники",25,null,"Иваново"]
["Великобритания","доллары США",105,270,null,null,"Шарковщина",25,null,"Ивацевичи"]
["Венгрия","евро",65,155,null,null,"Шумилино",25,null,"Ивье"]
["Венесуэла","доллары США",35,120,null,null,"Гомельская область",null,null,"Калинковичи"]
["Вьетнам","доллары США",45,110,null,null,"Брагин",25,null,"Каменец"]
["Габон","доллары США",110,175,null,null,"Буда-Кошелево",25,null,"Кировск"]
["Гаити","доллары США",70,150,null,null,"Ветка",25,null,"Клецк"]
["Гайана","доллары США",75,155,null,null,"Добруш",25,null,"Климовичи"]
["Гамбия","доллары США",40,135,null,null,"Ельск",25,null,"Кличев"]
["Гана","доллары США",55,155,null,null,"Житковичи",25,null,"Кобрин"]
["Гватемала","доллары США",70,100,null,null,"Жлобин",25,null,"Копыль"]
["Гвинея","доллары США",55,120,null,null,"Калинковичи",25,null,"Кореличи"]
["Гвинея-Бисау","доллары США",55,70,null,null,"Корма",25,null,"Корма"]
["Германия","евро",80,145,null,null,"Лельчицы",25,null,"Костюковичи"]
["Гибралтар","доллары США",70,255,null,null,"Лоев",25,null,"Краснополье"]
["Гондурас","доллары США",55,130,null,null,"Мозырь",25,null,"Кричев"]
["Гонконг","доллары США",75,210,null,null,"Наровля",25,null,"Круглое"]
["Гренада","доллары США",90,195,null,null,"Октябрьский",25,null,"Крупки"]
["Греция","евро",75,145,null,null,"Петриков",25,null,"Лельчицы"]
["Грузия","доллары США",50,125,null,null,"Речица",25,null,"Лепель"]
["Дания","евро",95,160,null,null,"Рогачев",25,null,"Лида"]
["Демократическая Республика Конго","доллары США",75,180,null,null,"Светлогорск",25,null,"Лиозно"]
["Джибути","доллары США",70,120,null,null,"Чечерск",25,null,"Логойск"]
["Доминиканская Республика","доллары США",60,150,null,null,"Хойники",25,null,"Лоев"]
["Египет","доллары США",80,160,null,null,"Гродненская область",null,null,"Лунинец"]
["Замбия","доллары США",65,175,null,null,"Большая Берестовица",25,null,"Любань"]
["Зимбабве","доллары США",55,120,null,null,"Волковыск",25,null,"Ляховичы"]
["Израиль","доллары США",95,260,null,null,"Вороново",25,null,"Малорита"]
["Индия","доллары США",55,120,null,null,"Дятлово",25,null,"Марьина Горка"]
["Индонезия","доллары США",65,120,null,null,"Зельва",25,null,"Миоры"]
["Иордания","доллары США",80,145,null,null,"Ивье",25,null,"Мозырь"]
["Ирак","доллары США",70,135,null,null,"Кореличи",25,null,"Молодечно"]
["Иран","доллары США",25,70,null,null,"Лида",{"$f":"$D$9","v":25},null,"Мосты"]
["Ирландия","евро",85,185,null,null,"Мосты",25,null,"Мстиславль"]
["Исландия","доллары США",90,190,null,null,"Новогрудок",25,null,"Мядель"]
["Испания","евро",85,145,null,null,"Ошмяны",25,null,"Наровля"]
["Италия","евро",85,135,null,null,"Островец",25,null,"Несвиж"]
["Йемен","доллары США",55,75,null,null,"Свислочь",25,null,"Новогрудок"]
["Кабо-Верде","доллары США",75,105,null,null,"Слоним",25,null,"Октябрьский"]
["Казахстан","доллары США",50,80,null,null,"Сморгонь",25,null,"Орша"]
["Острова Кайман","доллары США",95,235,null,null,"Щучин",25,null,"Осиповичи"]
["Камбоджа","доллары США",50,85,null,null,"Минская область",null,null,"Островец"]
["Камерун","доллары США",70,115,null,null,"Березино",25,null,"Ошмяны"]
["Канада","доллары США",100,205,null,null,"Борисов",25,null,"Петриков"]
["Катар","доллары США",90,205,null,null,"Вилейка",25,null,"Пинск"]
["Кения","доллары США",65,165,null,null,"Воложин",25,null,"Полоцк"]
["Кипр","евро",65,95,null,null,"Дзержинск",25,null,"Поставы"]
["Китай","доллары США",70,145,null,null,"Клецк",25,null,"Пружаны"]
["Корейская Народно-Демократическая Республика","доллары США",50,165,null,null,"Копыль",25,null,"Речица"]
["Республика Корея","доллары США",80,200,null,null,"Крупки",25,null,"Рогачев"]
["Колумбия","доллары США",25,110,null,null,"Логойск",25,null,"Россоны"]
["Коморы","доллары США",70,120,null,null,"Любань",25,null,"Светлогорск"]
["Конго","доллары США",60,170,null,null,"Молодечно",25,null,"Свислочь"]
["Коста-Рика","доллары США",70,125,null,null,"Мядель",25,null,"Сенно"]
["Кот-д’Ивуар","доллары США",55,110,null,null,"Несвиж",25,null,"Славгород"]
["Куба","евро",50,160,null,null,"Марьина Горка",25,null,"Слоним"]
["Кувейт","доллары США",95,170,null,null,"Слуцк",25,null,"Слуцк"]
["Кыргызстан","доллары США",35,125,null,null,"Смолевичи",25,null,"Смолевичи"]
["Лаос","доллары США",60,100,null,null,"Солигорск",25,null,"Сморгонь"]
["Латвия","евро",60,110,null,null,"Старые Дороги",25,null,"Солигорск"]
["Лесото","доллары США",45,75,null,null,"Столбцы",25,null,"Старые Дороги"]
["Либерия","доллары США",90,175,null,null,"Узда",25,null,"Столбцы"]
["Ливан","доллары США",60,160,null,null,"Червень",25,null,"Столин"]
["Ливия","доллары США",55,140,null,null,"Могилевская область",null,null,"Толочин"]
["Литва","евро",55,115,null,null,"Белыничи",25,null,"Узда"]
["Лихтенштейн","евро",90,215,null,null,"Бобруйск",25,null,"Ушачи"]
["Люксембург","евро",90,225,null,null,"Быхов",25,null,"Хойники"]
["Маврикий","доллары США",65,175,null,null,"Горки",25,null,"Хотимск"]
["Мавритания","доллары США",50,110,null,null,"Глуск",25,null,"Чаусы"]
["Мадагаскар","доллары США",45,120,null,null,"Дрибин",25,null,"Чашники"]
["Макао","доллары США",55,130,null,null,"Кировск",25,null,"Червень"]
["Северная Македония","евро",40,65,null,null,"Климовичи",25,null,"Чериков"]
["Малави","доллары США",45,120,null,null,"Кличев",25,null,"Чечерск"]
["Малайзия","доллары США",70,110,null,null,"Костюковичи",25,null,"Шарковщина"]
["Мали","доллары США",80,110,null,null,"Краснополье",25,null,"Шклов"]
["Мальдивы","доллары США",55,160,null,null,"Кричев",25,null,"Шумилино"]
["Мальта","евро",80,165,null,null,"Круглое",25,null,"Щучин"]
["Марокко","доллары США",65,130,null,null,"Мстиславль",25]
["Мексика","доллары США",90,225,null,null,"Осиповичи",25]
["Мозамбик","доллары США",75,130,null,null,"Славгород",25]
["Молдова","доллары США",50,90,null,null,"Хотимск",25]
["Монако","евро",70,200,null,null,"Чаусы",25]
["Монголия","доллары США",40,135,null,null,"Чериков",25]
["Мьянма","доллары США",35,75,null,null,"Шклов",{"$f":"$D$9","v":25}]
["Намибия","доллары США",45,140]
["Непал","доллары США",45,110]
["Нигер","доллары США",65,90]
["Нигерия","доллары США",25,80]
["Нидерланды","евро",80,155]
["Никарагуа","доллары США",50,110]
["Новая Зеландия","доллары США",95,170]
["Норвегия","доллары США",145,150]
["Объединенные Арабские Эмираты","доллары США",120,200]
["Оман","доллары США",80,160]
["Пакистан","доллары США",50,205]
["Палау","доллары США",80,185]
["Панама","доллары США",75,140]
["Папуа – Новая Гвинея","доллары США",70,210]
["Парагвай","доллары США",65,100]
["Перу","доллары США",75,180]
["Польша","доллары США",65,150]
["Португалия","евро",80,155]
["Пуэрто-Рико","доллары США",90,215]
["Российская Федерация","доллары США",25,80]
["Российская Федерация, Москва","доллары США",40,145]
["Российская Федерация, Санкт-Петербург","доллары США",40,145]
["Российская Федерация, Калининград","доллары США",35,105]
["Российская Федерация, Мурманск","доллары США",25,105]
["Российская Федерация, Новосибирск","доллары США",30,95]
["Российская Федерация, Самара","доллары США",40,90]
["Российская Федерация, Сочи","доллары США",25,135]
["Российская Федерация, Тверь","доллары США",40,80]
["Российская Федерация, Владивосток","доллары США",30,120]
["Руанда","доллары США",50,110]
["Румыния","евро",55,140]
["Эль-Сальвадор","доллары США",65,130]
["Самоа","доллары США",50,85]
["Сан-Марино","евро",85,135]
["Сан-Томе и Принсипи","доллары США",55,90]
["Саудовская Аравия","доллары США",90,205]
["Свазиленд","доллары США",45,135]
["Сейшелы","доллары США",95,165]
["Сенегал","доллары США",80,150]
["Сент-Люсия","доллары США",95,265]
["Сербия","евро",55,100]
["Сингапур","доллары США",105,245]
["Сирия","доллары США",65,130]
["Словакия","евро",60,135]
["Словения","евро",65,140]
["Сомали","доллары США",45,160]
["Судан","доллары США",50,95]
["Суринам","доллары США",55,125]
["Соединенные Штаты Америки","доллары США",110,235]
["Сьерра-Леоне","доллары США",65,160]
["Таджикистан","доллары США",40,110]
["Таиланд","доллары США",80,135]
["Танзания","доллары США",60,140]
["Того","доллары США",60,125]
["Тонга","доллары США",50,150]
["Тринидад и Тобаго","доллары США",100,195]
["Тунис","доллары США",45,90]
["Туркменистан","доллары США",80,135]
["Турция","доллары США",40,90]
["Уганда","доллары США",45,145]
["Узбекистан","доллары США",45,125]
["Украина","доллары США",55,105]
["Уругвай","доллары США",65,125]
["Фиджи","доллары США",70,135]
["Филиппины","доллары США",85,145]
["Финляндия","евро",85,190]
["Франция","евро",110,170]
["Хорватия","доллары США",70,135]
["Центральноафриканская Республика","доллары США",70,110]
["Чад","доллары США",45,95]
["Черногория","евро",30,65]
["Чехия","евро",60,140]
["Чили","доллары США",85,210]
["Швейцария","евро",90,215]
["Швеция","доллары США",85,250]
["Шри-Ланка","доллары США",50,145]
["Эквадор","доллары США",55,120]
["Экваториальная Гвинея","доллары США",50,150]
["Эритрея","доллары США",85,80]
["Эстония","евро",95,105]
["Эфиопия","доллары США",60,110]
["Южно-Африканская Республика","доллары США",35,120]
["Южный Судан","доллары США",30,85]
["Ямайка","доллары США",75,220]
["Япония","доллары США",100,195]